Cogmind - Beta 13 @@@ ROGUE MODE // 2024.04.14 @ 18:02:28 Player: Golemkid Result: Destroyed self with Rocket Launcher Performance ------------- Evolutions (1) 500 Regions Visited (3) 600 Robots Destroyed (23) 115 Value Destroyed (697) 697 Prototype IDs (4) 80 Alien Tech Used (0) 0 Bonus (0) 0 TOTAL SCORE: 1992 Bonus ------- None Cogmind --------- Core Integrity 0/400 Matter 389/450 Energy 222/250 System Corruption 1% Temperature Cool (66) Movement Treading (160) Location -9/Storage Parts ------- > --- POWER (1) -------- Ion Engine > --- PROPULSION (3) --- Light Treads Light Treads Light Treads > --- UTILITY (3) ------ Large Storage Unit Large Matter Pod Utility Shielding > --- WEAPON (2) ------- Beam Rifle Rocket Launcher > --- INVENTORY (15) --- Ion Engine Aluminum Leg Aluminum Leg Heat Sink Heat Sink Improved Heat Sink Targeting Computer Tractor Beam Drone Bay (2/2) Drone Bay (2/2) EM Pulse Gun EM Pulse Gun Beam Rifle Improved Heavy Laser Grenade Launcher Peak State ------------ > --- POWER ------------ Ion Engine > --- PROPULSION ------- Light Treads Light Treads Light Treads > --- UTILITY ---------- Large Storage Unit Large Matter Pod Utility Shielding > --- WEAPON ----------- Improved Heavy Laser Improved Assault Rifle > --- INVENTORY -------- Ion Engine Aluminum Leg Heat Sink Heat Sink Improved Heat Sink Large Matter Pod Targeting Computer Utility Shielding Tractor Beam EM Pulse Gun EM Pulse Gun Light Assault Rifle Grenade Launcher [Rating: 17] Favorites ----------- Power Ion Engine Engine Ion Engine Propulsion Aluminum Leg Treads Light Treads Leg Aluminum Leg Utility Large Matter Pod Storage Large Matter Pod Protection Utility Shielding Weapon Assault Rifle Energy Gun Improved Heavy Laser Ballistic Gun Assault Rifle Launcher Rocket Launcher Build | -11 -10 -9 -9 ------- Run | Yrd Mat Mat Sto Slots Evolved 2 | . . 2 . Power . | . . . . Propulsion 1 | . . 1 . Utility 1 | . . 1 . Weapon . | . . . . Parts Attached 30 | 6 9 11 4 Power 3 | 1 1 1 . Engine 3 | 1 1 1 . Core . | . . . . Reactor . | . . . . Propulsion 8 | 2 2 4 . Treads 3 | . . 3 . Leg 5 | 2 2 1 . Wheel . | . . . . Hover . | . . . . Flight . | . . . . Utility 7 | 1 4 1 1 Device . | . . . . Storage 6 | 1 4 . 1 Processor . | . . . . Hackware . | . . . . Protection 1 | . . 1 . Artifact . | . . . . Weapon 12 | 2 2 5 3 Energy Gun 2 | . . . 2 Energy Cannon . | . . . . Ballistic Gun 9 | 2 2 5 . Ballistic Cannon . | . . . . Launcher 1 | . . . 1 Special Weapon . | . . . . Impact Weapon . | . . . . Slashing Weapon . | . . . . Piercing Weapon . | . . . . Special Melee Weapon . | . . . . Unidentified Prototypes 2 | . . 1 1 Parts Lost 5 | . 1 3 1 Power 2 | . 1 1 . Propulsion 1 | . . 1 . Utility . | . . . . Weapon 2 | . . 1 1 Highest Loss Streak 3 | . 1 3 1 To Critical Strikes . | . . . . Average Slot Usage (%) 90 | . 96 75 99 Engine 11 | . 13 9 11 Treads 9 | . . 3 33 Leg 17 | . 28 15 . Storage 23 | . 25 22 22 Protection 4 | . . 5 11 Energy Gun 4 | . . . 17 Ballistic Gun 19 | . 28 19 4 Naked Turns . | . . . . Heaviest Build 37 | 11 32 35 37 Greatest Support 60 | 20 20 60 60 Greatest Overweight (x) 8 | . 1 8 . Average Overweight (x) . | . . 1 . Largest Inventory Capacity 20 | 8 20 15 15 Average Capacity 13 | 6 12 15 15 Most Carried 15 | 4 15 15 15 Average Carried 11 | 2 9 14 14 Final Capacity 15 | 8 15 15 15 Final Carried 15 | 4 15 13 15 Class Distribution -------------------- 100% | Mutant Dominant Class ---------------- Mutant | -10/Materials Mutant | -9/Materials Mutant | -9/Storage Resources | -11 -10 -9 -9 ----------- Run | Yrd Mat Mat Sto Matter Collected 953 | 213 283 240 217 Remotely . | . . . . Salvage Created 851 | . 235 177 439 Parts 51 | . 16 8 27 Haulers Intercepted . | . . . . Recyclers Shooed 1 | . . . 1 Parts Field Recycled . | . . . . Retrieved Matter . | . . . . Parts Self-Destructed . | . . . . Prevented . | . . . . Kills | -11 -10 -9 -9 ------- Run | Yrd Mat Mat Sto Combat Hostiles Destroyed 19 | . 6 4 9 Guns 16 | . 6 4 6 AOE 3 | . . . 3 Classes Destroyed 7 | . 3 2 2 Worker 1 | . . . 1 Recycler 2 | . 1 . 1 Operator 1 | . . . 1 Swarmer 3 | . 3 . . Grunt 10 | . 3 2 5 Duelist 1 | . . 1 . Sentry 5 | . . 1 4 Best Kill Streak 5 | . 4 3 5 Combat Bots Only 4 | . 3 3 4 Max Kills in Single Turn 2 | . 1 1 2 Gunslinging . | . . . . Exploded 2 | . . . 2 Melee . | . . . . Uniques/NPCs Destroyed . | . . . . Combat | -11 -10 -9 -9 -------- Run | Yrd Mat Mat Sto Hostile Shots Fired 110 | . 34 33 43 Missed 24 | . 8 4 12 Damage Taken 1466 | . 282 669 515 Core 446 | . 45 188 213 Absorbed by Shields . | . . . . Redirected to Shielding 24 | . . 20 4 Core Remaining (%) 91 | 100 82 . . Volleys Fired 69 | . 16 23 30 Largest 2 | . 2 2 2 Hottest 121 | . 40 46 121 Shots Fired 117 | . 32 28 57 Gun 114 | . 32 28 54 Cannon . | . . . . Launcher 3 | . . . 3 Special . | . . . . Kinetic 64 | . 32 28 4 Thermal 50 | . . . 50 Explosive 3 | . . . 3 Electromagnetic . | . . . . Robot Hit Streak 28 | . 10 28 11 Robot Miss Streak 2 | . 2 1 2 Penetration Max . | . . . . Secondary Targets 1 | . 1 . . Max Gunslinging Chain 1 | . 1 . . Shots Hit Robots 82 | . 22 24 36 Core Hits 36 | . 12 7 17 Critical Kills . | . . . . Critical Parts Destroyed 1 | . . 1 . Critical Strikes 2 | . . 1 1 Burn 1 | . . . 1 Destroy 1 | . . 1 . Melee Attacks . | . . . . Impact . | . . . . Slashing . | . . . . Piercing . | . . . . Sneak Attacks . | . . . . Combat Hostiles . | . . . . Follow-up Attacks . | . . . . Damage Inflicted 1693 | . 271 411 1011 Guns 1366 | . 268 411 687 Cannons . | . . . . Explosions 324 | . . . 324 Melee . | . . . . Ramming 3 | . 3 . . Kinetic 705 | . 268 411 26 Thermal 661 | . . . 661 Explosive 324 | . . . 324 Electromagnetic . | . . . . Impact . | . . . . Slashing . | . . . . Piercing . | . . . . Highest Corruption 1 | . . . 1 Average Corruption 1 | . . . 1 Corruption Purged . | . . . . Corruption Blocked . | . . . . Effects 1 | . . . 1 Energy Discharges 1 | . . . 1 Overload Shots . | . . . . Overflow Damage . | . . . . Projectiles . | . . . . Explosions . | . . . . Melee . | . . . . Knockbacks . | . . . . Impact . | . . . . Kinetic . | . . . . Secondary . | . . . . Self-Inflicted Damage 73 | . . . 73 Shots 3 | . . . 3 Rammed . | . . . . Targets Rammed 1 | . 1 . . Kicked 1 | . 1 . . Crushed . | . . . . Highest Temperature 518 | . 2 10 518 Average Temperature 157 | . 2 10 159 Received Heat Transfer 393 | . 120 93 180 Effects 6 | . . . 6 Interference 3 | . . . 3 Matter Decay 2 | . . . 2 Damage (core) 1 | . . . 1 Siege Activations . | . . . . Robots Corrupted . | . . . . Combat Hostiles . | . . . . Parts Fried . | . . . . Impact Corruptions . | . . . . Robots Melted . | . . . . Combat Hostiles . | . . . . Parts Melted 8 | . . . 8 Heat Transferred 1258 | . . . 1258 Parts Sabotaged . | . . . . Parts Stolen . | . . . . Parts Stripped . | . . . . Power Chain Reactions . | . . . . Alert | -11 -10 -9 -9 ------- Run | Yrd Mat Mat Sto Peak Influence 177 | . 177 159 160 Initial 74 | . . 74 5 Average 68 | . 66 67 83 Maximum Alert Level . | . . . . Low Security (%) 100 | 100 100 100 100 Level 1 . | . . . . Level 2 . | . . . . Level 3 . | . . . . Level 4 . | . . . . Level 5 . | . . . . High Security . | . . . . Max Security . | . . . . Squads Dispatched 3 | . 2 . 1 Investigation 1 | . 1 . . Extermination . | . . . . Reinforcement 2 | . 1 . 1 Assault . | . . . . Garrison . | . . . . Intercept . | . . . . Searches Triggered . | . . . . Construction Impeded . | . . . . Haulers Reinforced . | . . . . Active Scanning Responses . | . . . . Cargo Convoy Interrupts . | . . . . Stealth | -11 -10 -9 -9 --------- Run | Yrd Mat Mat Sto Distress Signals 2 | . . 1 1 Communications Jammed . | . . . . Distress Signals . | . . . . Times Spotted 37 | . 15 8 14 Peak Tracking Total 5 | . 4 3 5 Tactical Retreats 2 | . 1 1 . Traps | -11 -10 -9 -9 ------- Run | Yrd Mat Mat Sto Traps Triggered 2 | . 1 . 1 Indirectly . | . . . . Trap Hack Attempts . | . . . . Triggered . | . . . . Disarmed . | . . . . Reprogrammed . | . . . . Reused . | . . . . Traps Extracted . | . . . . Installed . | . . . . Triggered . | . . . . Machines | -11 -10 -9 -9 ---------- Run | Yrd Mat Mat Sto Machines Disabled . | . . . . Max in Single Turn . | . . . . Machines Repaired . | . . . . Machines Dismantled . | . . . . Machines Sabotaged . | . . . . Overloaded Fab Kills . | . . . . Hacking | -11 -10 -9 -9 --------- Run | Yrd Mat Mat Sto Machines Accessed 4 | . 2 . 2 Terminals 3 | . 1 . 2 Fabricators . | . . . . Repair Stations . | . . . . Recycling Units 1 | . 1 . . Scanalyzers . | . . . . Garrison Access . | . . . . Total Hacks 7 | . 4 . 3 Successful 5 | . 3 . 2 Failed 2 | . 1 . 1 Catastrophic . | . . . . Database Lockouts . | . . . . Manual . | . . . . Terminals 4 | . 1 . 3 Fabricators . | . . . . Repair Stations . | . . . . Recycling Units 3 | . 3 . . Scanalyzers . | . . . . Garrison Access . | . . . . Terminal Hacks 3 | . 1 . 2 Prototype ID Bank 1 | . 1 . . Open Door 2 | . . . 2 Fabricator Hacks . | . . . . Repair Station Hacks . | . . . . Recycling Unit Hacks 2 | . 2 . . Retrieve Matter 1 | . 1 . . Retrieve Components 1 | . 1 . . Scanalyzer . | . . . . Garrison Access Hacks . | . . . . Unauthorized Hacks . | . . . . Terminals . | . . . . Fabricators . | . . . . Repair Stations . | . . . . Recycling Units . | . . . . Scanalyzers . | . . . . Garrison Access . | . . . . Data Cores Recovered . | . . . . Used . | . . . . Hacking Detections 1 | . 1 . . Full Trace Events . | . . . . Feedback Events . | . . . . Feedback Blocked . | . . . . Robot Schematics Acquired . | . . . . Robots Built . | . . . . Authchips . | . . . . Time . | . . . . Total Robot Build Rating . | . . . . Part Schematics Acquired . | . . . . Parts Built . | . . . . Authchips . | . . . . Time . | . . . . Total Part Build Rating . | . . . . Parts Repaired . | . . . . Time . | . . . . Parts Recycled . | . . . . Recycled Matter . | . . . . Retrieved Matter . | . . . . Retrieved Components 3 | . 3 . . Parts Scanalyzed . | . . . . Part Schematics Acquired . | . . . . Parts Damaged . | . . . . Bothacking | -11 -10 -9 -9 ------------ Run | Yrd Mat Mat Sto Used RIF Installer . | . . . . Robots Hacked . | . . . . Non-combat . | . . . . Combat . | . . . . Robot Hacks Applied . | . . . . Relay Couplers Released . | . . . . Fabnet Peak Effective % . | . . . . Robots Rewired . | . . . . Allies Hacked . | . . . . Hacks Repelled . | . . . . Allies | -11 -10 -9 -9 -------- Run | Yrd Mat Mat Sto Total Allies . | . . . . Largest Group . | . . . . Highest-Rated Group . | . . . . Highest-Rated Ally . | . . . . Total Orders . | . . . . Ally Attacks . | . . . . Total Damage . | . . . . Kills . | . . . . Allies Corrupted . | . . . . Allies Melted . | . . . . Intel | -11 -10 -9 -9 ------- Run | Yrd Mat Mat Sto Robot Analysis Total . | . . . . Derelict Logs Recovered . | . . . . Drone Launches . | . . . . Drone Recoveries . | . . . . Exploration | -11 -10 -9 -9 ------------- Run | Yrd Mat Mat Sto Turns Passed 1754 | 66 747 512 429 Spaces Moved 859 | 48 401 207 203 Core 16 | 6 . 10 . Treads 233 | . . 30 203 Legs 610 | 42 401 167 . Wheels . | . . . . Hover . | . . . . Flight . | . . . . Fastest Speed 50 | 50 120 160 160 Average Speed 166 | 111 154 207 160 Slowest Speed 450 | 120 190 450 160 Overloaded Moves . | . . . . Propulsion Burnouts . | . . . . Robots Hopped . | . . . . Cave-ins Triggered . | . . . . Exploration Rate (%) 33 | 4 67 20 41 Regions Visited 3 Branch Regions 1 Pre-discovered Areas . | . . . . Known Exits Taken . | . . . . Unknown Exits Taken 3 | 1 1 1 . Scrap Searched . | . . . . Spaces Dug . | . . . . Terrain Destroyed 33 | . . . 33 Melee . | . . . . Projectile 9 | . . . 9 AOE 24 | . . . 24 Terrain Rammed . | . . . . Walls Destroyed . | . . . . Machines Disabled . | . . . . Actions | -11 -10 -9 -9 --------- Run | Yrd Mat Mat Sto Total 1067 | 57 498 259 253 Wait 73 | . 53 15 5 Move 856 | 47 400 206 203 Hop . | . . . . Pick Up 23 | 4 12 1 6 Fast Attach 19 | 6 4 7 2 Attach 4 | . . 4 . Detach 1 | . . 1 . Swap 7 | . 5 . 2 Drop 14 | . 7 2 5 Fire 69 | . 16 23 30 Melee . | . . . . Ram . | . . . . Kick 1 | . 1 . . Crush . | . . . . Escape Stasis . | . . . . Rewire . | . . . . Trap . | . . . . Miscellaneous . | . . . . Route ------- -11/Scrapyard -10/Materials -9/Materials -9/Storage History --------- Turn | Location | Event 3 | -11/Scrapyard | Discovered new exit (range 14) 67 | -11/Scrapyard | Entered Materials 312 | -10/Materials | Build established: Mutant 641 | -10/Materials | Discovered new exit (range 16) 814 | -10/Materials | Entered another Materials area 814 | -9/Materials | Evolved 2 slots: Propulsion x1, Utility x1 1205 | -9/Materials | Lost 3 parts (1p1n1w) 1297 | -9/Materials | Discovered new exit (range 8) 1326 | -9/Materials | Entered Storage 1429 | -9/Storage | Core integrity fell below 50% 1543 | -9/Storage | Core integrity fell below 20% 1755 | -9/Storage | Destroyed self with Rocket Launcher Last Messages --------------- 01704_ System corrupted (+1). 01708_ Acquired Beam Rifle. 01714_ U-05 Engineer lays Concrete. 01726_ R-06 Scavenger collects Utility Shielding. 01732_ Y-45 Defender destroyed. 01739_ K-01 Serf collects debris. 01743_ System corrupted: Energy discharge (-67). 01743_ Dropped Mni. Grenade Launcher. 01743_ K-01 Serf collects debris. 01746_ Acquired Rocket Launcher. 01746_ C-30 ARC bursts open, deploying its payload. 01746_ G-47 Trooper unfolds itself. 01746_ G-34 Mercenary unfolds itself. 01748_ K-01 Serf collects debris. 01749_ G-34 Mercenary destroyed. 01749_ K-01 Serf destroyed. 01755_ G-47 Trooper destroyed. 01755_ G-34 Mercenary destroyed. Map ----- +----------------------------------------------------+ | | | | | | | | | | | ?????????????????????????????????????????????????? | | ?????????????????????????????????????????????????? | | ?????????????????????????????????????????????????? | | ?????????????????????????????????????????????????? | | ###### ?????????????????????????????????????????? | | ??????????????? ???????????????????????? | | ??????????????? ???????????????????????? | | ??????????????? ???????????????????????? | | ##?????????????????????? ???????"???????????????? | | ???????????????????????? ?????? ???????????????? | | ???????????????????????? ????? ""???????????????? | | ???????????????????????? ????? ""???????????????? | | ????????????????????###? #### "???"????????????? | | ????????????????????+ ? + ?? ?????????????? | | ????????????????????# ### #?+##?????????????? | | ????????????????????# ## # +?????????????? | | ????????????????????+ + #?????????????? | | ????????????????????# # ==% #?????????????? | | ?????????????????#### # ! [%% ??????????????? | | ??#??????????????# + ! * #?????????????????? | | ? #??????????????# # @ #?????????????????? | | ? #??????????????# # ] ##?????????????????? | | ? #??????????#####+# #### ####??? ??????????????? | | # ## ?# # #???##????? #?????????????? | | + ?# # ########## #?????????????? | | # ?# # ????????????? | | # # + ????????????? | | + ?? ?# # ^ ????????????? | | # #/##??????# # [[ ###????????????????? | | # #???????# # [ ^ #??????????????????? | | #? #???????####### """#??????????????????? | | #??# #?????????????# """#??????????????????? | | ???? #???########### R"#??????????????????? | | ?????#???# """#??????????????????? | | ?????????# ! +??????????????????? | | ?????????# #??????????????????? | | ####+###?######+###############??????????????????? | | #?# #????????????????????????????? | | ### #????????????????????????????? | | """ ""# """" #????????????????????????????? | | """ Y"# "???" #????????????????????????????? | | """ ""# "????" #????????????????????????????? | | "T" #?# ????"" #????????????????????????????? | | """ !! #?# ???"" #????????????????????????????? | | !! #?# """" #????????????????????????????? | +----------------------------------------------------+ Best States ------------- Heat Dissipation 28 Energy Generation 10 Energy Capacity 250 Matter Stores 450 Matter Capacity 450 Sight Range 16 Terrain Scan Density 10 Utility Shielding 33 Evasion (%) 55 Recoil Reduction 3 Item Schematics ----------------- None Robot Schematics ------------------ None Fabricated ------------ Nothing Alien Tech Used ----------------- None Achievements -------------- None Challenges ------------ None Game ------ Seed DeepLayeredDisintegrator Manual? 0 Play Time 00:13:02 Cumulative 8.0 hours Start 2024.04.14 @ 00:08:17 End 2024.04.14 @ 18:02:28 Sessions 3 Manual Loads 0 Difficulty Rogue Special Mode None Game No. 23 Rogue 23 Adventurer 0 Explorer 0 Win Type - Total 0 Types 0/0/0/0/0/0/0/0/0 Lore% 8 Gallery% 15 Achievement% 14 Wizard Run 0 Options --------- Layout 1 ASCII 0 Keyboard 0 Movement Mouse Keybinds 0 Fullscreen 1 Font 24/Smallcaps Map View 50x35 Zoom Use 0% Tactical HUD 1 Map Filters NONE Filters NONE Steam 1 RUN: 68bee25d-e07a-4544-b988-5ab51ea73a93